[Event "Late-Titled-Tuesday-Blitz-February-20-2024"]
[Site "Chess.com"]
[Date "2024.02.20"]
[Round "4"]
[White "winniethepooh04"]
[Black "Statham_01"]
[Result "1-0"]
[WhiteElo "2565"]
[BlackElo "2569"]
[TimeControl "180+1"]
[EndTime "14:40:03 PST"]
[Termination "winniethepooh04 won on time"]

1. d4 {[%clk 0:02:56.5]} 1... e6 {[%clk 0:02:57.1]} 2. Nf3 {[%clk 0:02:57.1]}
2... b6 {[%clk 0:02:56.5]} 3. Bf4 {[%clk 0:02:57.5]} 3... Bb7 {[%clk 0:02:56.3]}
4. e3 {[%clk 0:02:57.9]} 4... f5 {[%clk 0:02:55.8]} 5. Nbd2 {[%clk 0:02:58]}
5... Nf6 {[%clk 0:02:56.1]} 6. Be2 {[%clk 0:02:58.4]} 6... d6 {[%clk 0:02:48.8]}
7. O-O {[%clk 0:02:55.7]} 7... Nbd7 {[%clk 0:02:48.8]} 8. h3 {[%clk 0:02:55.7]}
8... Ne4 {[%clk 0:02:45.6]} 9. Nxe4 {[%clk 0:02:55.1]} 9... fxe4 {[%clk
0:02:41.7]} 10. Nd2 {[%clk 0:02:55]} 10... Be7 {[%clk 0:02:35.8]} 11. f3 {[%clk
0:02:52.8]} 11... e5 {[%clk 0:02:28.9]} 12. Bh2 {[%clk 0:02:51.9]} 12... Bg5
{[%clk 0:02:19.3]} 13. f4 {[%clk 0:02:46.6]} 13... exf4 {[%clk 0:02:20.2]} 14.
Bxf4 {[%clk 0:02:47]} 14... O-O {[%clk 0:02:18]} 15. Bxg5 {[%clk 0:02:45.4]}
15... Qxg5 {[%clk 0:02:18.9]} 16. Rxf8+ {[%clk 0:02:43.5]} 16... Rxf8 {[%clk
0:02:19.8]} 17. Nf1 {[%clk 0:02:43.9]} 17... Nf6 {[%clk 0:02:11.8]} 18. Qd2
{[%clk 0:02:42.7]} 18... Bc8 {[%clk 0:02:04.2]} 19. Kh1 {[%clk 0:02:35]} 19...
Qh4 {[%clk 0:01:50.6]} 20. Nh2 {[%clk 0:02:31.8]} 20... Be6 {[%clk 0:01:34.1]}
21. a4 {[%clk 0:02:25.6]} 21... Bf7 {[%clk 0:01:28.7]} 22. Rf1 {[%clk
0:02:24.6]} 22... Bh5 {[%clk 0:01:27.7]} 23. Bxh5 {[%clk 0:02:11.6]} 23... Nxh5
{[%clk 0:01:28.6]} 24. Rxf8+ {[%clk 0:02:11.1]} 24... Kxf8 {[%clk 0:01:29.5]}
25. Nf1 {[%clk 0:02:11.1]} 25... Ke7 {[%clk 0:01:19.3]} 26. Kg1 {[%clk
0:02:10.8]} 26... Qg5 {[%clk 0:01:13.8]} 27. c4 {[%clk 0:02:01.8]} 27... Nf6
{[%clk 0:01:13.5]} 28. b4 {[%clk 0:01:57.1]} 28... a5 {[%clk 0:01:12.2]} 29. b5
{[%clk 0:01:56.1]} 29... h5 {[%clk 0:01:08.3]} 30. Qf2 {[%clk 0:01:52.1]} 30...
h4 {[%clk 0:01:04]} 31. Qe2 {[%clk 0:01:50.8]} 31... Qf5 {[%clk 0:00:59.8]} 32.
Qf2 {[%clk 0:01:49.6]} 32... Qe6 {[%clk 0:00:56.9]} 33. Qc2 {[%clk 0:01:42.6]}
33... g5 {[%clk 0:00:55.1]} 34. Qe2 {[%clk 0:01:40.1]} 34... g4 {[%clk
0:00:51.4]} 35. hxg4 {[%clk 0:01:40.2]} 35... Nxg4 {[%clk 0:00:52]} 36. Nh2
{[%clk 0:01:40.5]} 36... Nf6 {[%clk 0:00:47.3]} 37. Nf1 {[%clk 0:01:40.3]} 37...
h3 {[%clk 0:00:47]} 38. gxh3 {[%clk 0:01:39.2]} 38... Qxh3 {[%clk 0:00:46.9]}
39. Qg2 {[%clk 0:01:39.5]} 39... Qh6 {[%clk 0:00:45.1]} 40. Qg3 {[%clk
0:01:33.2]} 40... Qh7 {[%clk 0:00:43.7]} 41. Qg5 {[%clk 0:01:32.3]} 41... Qf7
{[%clk 0:00:39.6]} 42. Ng3 {[%clk 0:01:17.7]} 42... Kd7 {[%clk 0:00:33.2]} 43.
Nf5 {[%clk 0:01:12.6]} 43... Kc8 {[%clk 0:00:28.4]} 44. d5 {[%clk 0:01:08.6]}
44... Kb7 {[%clk 0:00:24.2]} 45. Nd4 {[%clk 0:01:09]} 45... Nd7 {[%clk
0:00:21.8]} 46. Nc6 {[%clk 0:01:08.3]} 46... Qf3 {[%clk 0:00:14.8]} 47. Kh2
{[%clk 0:01:02.1]} 47... Qf2+ {[%clk 0:00:14.5]} 48. Kh3 {[%clk 0:01:01.4]}
48... Qf3+ {[%clk 0:00:14.7]} 49. Kh4 {[%clk 0:01:01.2]} 49... Qf2+ {[%clk
0:00:13.8]} 50. Kh5 {[%clk 0:01:00.4]} 50... Qe2+ {[%clk 0:00:12.2]} 51. Kg6
{[%clk 0:00:57.9]} 51... Qf1 {[%clk 0:00:03.8]} 52. Qd8 {[%clk 0:00:53.4]} 52...
Qh3 {[%clk 0:00:03.7]} 53. Kf7 {[%clk 0:00:50.2]} 53... Qh7+ {[%clk 0:00:03.5]}
54. Ke6 {[%clk 0:00:49.9]} 54... Nc5+ {[%clk 0:00:03.9]} 55. Kf6 {[%clk
0:00:42.6]} 55... Qh4+ {[%clk 0:00:04.1]} 56. Kf5 {[%clk 0:00:39.5]} 56... Qxd8
{[%clk 0:00:05]} 57. Nxd8+ {[%clk 0:00:39.1]} 57... Kc8 {[%clk 0:00:05.9]} 58.
Nc6 {[%clk 0:00:39.3]} 58... Nxa4 {[%clk 0:00:06.1]} 59. Kxe4 {[%clk 0:00:40.1]}
59... Nc5+ {[%clk 0:00:06.4]} 60. Kd4 {[%clk 0:00:40.4]} 60... a4 {[%clk
0:00:07]} 61. Kc3 {[%clk 0:00:39.7]} 61... a3 {[%clk 0:00:04.8]} 62. Nd4 {[%clk
0:00:36.4]} 62... Kd7 {[%clk 0:00:05.1]} 63. Nc2 {[%clk 0:00:36.9]} 63... a2
{[%clk 0:00:04.5]} 64. Kb2 {[%clk 0:00:37.2]} 64... Nd3+ {[%clk 0:00:01.4]} 65.
Kxa2 {[%clk 0:00:36.6]} 65... Ke7 {[%clk 0:00:02.1]} 66. Kb3 {[%clk 0:00:36.7]}
66... Ne5 {[%clk 0:00:03]} 67. Kc3 {[%clk 0:00:37.3]} 67... Kf6 {[%clk
0:00:03.5]} 68. Kd4 {[%clk 0:00:37.8]} 68... Ng4 {[%clk 0:00:03.9]} 69. Nb4
{[%clk 0:00:37.9]} 69... Nh2 {[%clk 0:00:03.4]} 70. Na6 {[%clk 0:00:38]} 70...
Nf3+ {[%clk 0:00:02.9]} 71. Kc3 {[%clk 0:00:37.6]} 71... Ke5 {[%clk 0:00:02.4]}
72. Nxc7 {[%clk 0:00:38.2]} 72... Ke4 {[%clk 0:00:02.8]} 73. Na8 {[%clk
0:00:38.4]} 73... Kxe3 {[%clk 0:00:02.6]} 74. Nxb6 {[%clk 0:00:39]} 74... Nd4
{[%clk 0:00:03.3]} 75. Nc8 {[%clk 0:00:38.7]} 75... Ne2+ {[%clk 0:00:03.5]} 76.
Kb4 {[%clk 0:00:39]} 76... Kd4 {[%clk 0:00:03.2]} 77. b6 {[%clk 0:00:38.9]}
77... Nc1 {[%clk 0:00:03.3]} 78. b7 {[%clk 0:00:39]} 78... Nd3+ {[%clk
0:00:04.2]} 79. Kb5 {[%clk 0:00:39.3]} 1-0

[Event "Late-Titled-Tuesday-Blitz-February-20-2024"]
[Site "Chess.com"]
[Date "2024.02.20"]
[Round "4"]
[White "pooh2012"]
[Black "GoltsevDmitry2000"]
[Result "1-0"]
[WhiteElo "2571"]
[BlackElo "2769"]
[TimeControl "180+1"]
[EndTime "14:40:09 PST"]
[Termination "pooh2012 won by checkmate"]

1. d4 {[%clk 0:03:00.9]} 1... e6 {[%clk 0:03:00.2]} 2. c4 {[%clk 0:02:59.9]}
2... b6 {[%clk 0:02:59.9]} 3. Nf3 {[%clk 0:02:58.7]} 3... Bb7 {[%clk 0:03:00.4]}
4. a3 {[%clk 0:02:48.9]} 4... Nf6 {[%clk 0:02:59.6]} 5. Nbd2 {[%clk 0:02:38]}
5... a5 {[%clk 0:02:59.5]} 6. g3 {[%clk 0:02:13.9]} 6... Be7 {[%clk 0:02:59.3]}
7. Bg2 {[%clk 0:02:11.9]} 7... O-O {[%clk 0:02:59.7]} 8. O-O {[%clk 0:02:09.9]}
8... d6 {[%clk 0:02:58.9]} 9. Qc2 {[%clk 0:02:08.3]} 9... Nbd7 {[%clk
0:02:58.5]} 10. b3 {[%clk 0:02:06.5]} 10... e5 {[%clk 0:02:58]} 11. e3 {[%clk
0:02:05.3]} 11... exd4 {[%clk 0:02:56.3]} 12. Nxd4 {[%clk 0:01:59.7]} 12... Bxg2
{[%clk 0:02:54.7]} 13. Kxg2 {[%clk 0:02:00.6]} 13... Qc8 {[%clk 0:02:54.9]} 14.
f3 {[%clk 0:01:51.9]} 14... Qb7 {[%clk 0:02:54.3]} 15. Nf5 {[%clk 0:01:44.2]}
15... Rfe8 {[%clk 0:02:53.6]} 16. Nxe7+ {[%clk 0:01:43]} 16... Rxe7 {[%clk
0:02:54.5]} 17. e4 {[%clk 0:01:43]} 17... Rae8 {[%clk 0:02:53]} 18. Bb2 {[%clk
0:01:41.8]} 18... Ne5 {[%clk 0:02:51.5]} 19. Rae1 {[%clk 0:01:37.1]} 19... Qc6
{[%clk 0:02:39.7]} 20. Bc3 {[%clk 0:01:10.6]} 20... h6 {[%clk 0:02:36.3]} 21. h3
{[%clk 0:01:02]} 21... Qb7 {[%clk 0:02:26.7]} 22. a4 {[%clk 0:00:59]} 22... Qc6
{[%clk 0:02:25.8]} 23. Re3 {[%clk 0:00:55.5]} 23... Nfd7 {[%clk 0:02:21.1]} 24.
f4 {[%clk 0:00:51.4]} 24... Ng6 {[%clk 0:02:19.7]} 25. f5 {[%clk 0:00:44.5]}
25... Nge5 {[%clk 0:02:16.4]} 26. Bd4 {[%clk 0:00:39.6]} 26... f6 {[%clk
0:02:16.1]} 27. Rf4 {[%clk 0:00:28.8]} 27... Qb7 {[%clk 0:02:14.2]} 28. Qd1
{[%clk 0:00:27]} 28... Nc6 {[%clk 0:02:12.8]} 29. Nf3 {[%clk 0:00:22.4]} 29...
Nxd4 {[%clk 0:02:10.5]} 30. Qxd4 {[%clk 0:00:21.7]} 30... Nc5 {[%clk 0:02:08.3]}
31. Nd2 {[%clk 0:00:19.3]} 31... Re5 {[%clk 0:02:08.4]} 32. Kf2 {[%clk
0:00:18.5]} 32... Qc6 {[%clk 0:02:05]} 33. g4 {[%clk 0:00:18.2]} 33... Kf7
{[%clk 0:01:59.3]} 34. h4 {[%clk 0:00:17.2]} 34... Qb7 {[%clk 0:01:56.4]} 35.
Ke2 {[%clk 0:00:16.8]} 35... Qc8 {[%clk 0:01:48.7]} 36. Kf2 {[%clk 0:00:16.3]}
36... Qd7 {[%clk 0:01:46.8]} 37. Ke2 {[%clk 0:00:14.5]} 37... Rh8 {[%clk
0:01:44.3]} 38. Nf3 {[%clk 0:00:12.8]} 38... Qc6 {[%clk 0:01:40.6]} 39. g5
{[%clk 0:00:10.1]} 39... hxg5 {[%clk 0:01:39.8]} 40. hxg5 {[%clk 0:00:11]} 40...
Rh3 {[%clk 0:01:36.8]} 41. gxf6 {[%clk 0:00:08.7]} 41... gxf6 {[%clk 0:01:36.6]}
42. Rg4 {[%clk 0:00:08.4]} 42... Rh1 {[%clk 0:01:31.3]} 43. Nxe5+ {[%clk
0:00:07.6]} 43... dxe5 {[%clk 0:01:30]} 44. Qd8 {[%clk 0:00:05.7]} 44... Rh2+
{[%clk 0:01:15.1]} 45. Kf3 {[%clk 0:00:05.3]} 45... Rh3+ {[%clk 0:01:14.7]} 46.
Kf2 {[%clk 0:00:05.1]} 46... Rxe3 {[%clk 0:01:00.8]} 47. Kxe3 {[%clk 0:00:05.6]}
47... Nd7 {[%clk 0:01:01.7]} 48. Qg8+ {[%clk 0:00:04.7]} 48... Ke7 {[%clk
0:01:01.9]} 49. Rg7+ {[%clk 0:00:04.9]} 49... Kd6 {[%clk 0:01:00.9]} 50. Qe6+
{[%clk 0:00:05.5]} 50... Kc5 {[%clk 0:01:01.5]} 51. Qxc6+ {[%clk 0:00:03.9]}
51... Kxc6 {[%clk 0:01:02.4]} 52. Kd3 {[%clk 0:00:03]} 52... Kd6 {[%clk
0:01:02.9]} 53. Rf7 {[%clk 0:00:02.3]} 53... Nc5+ {[%clk 0:01:03.4]} 54. Ke3
{[%clk 0:00:02.6]} 54... Nd7 {[%clk 0:01:01.5]} 55. Rh7 {[%clk 0:00:02.8]} 55...
Nc5 {[%clk 0:01:01.6]} 56. Rf7 {[%clk 0:00:02.7]} 56... Nd7 {[%clk 0:01:01.8]}
57. Kf3 {[%clk 0:00:03]} 57... c6 {[%clk 0:01:00.3]} 58. Kg4 {[%clk 0:00:03]}
58... Kc7 {[%clk 0:01:00.2]} 59. Kh5 {[%clk 0:00:03]} 59... Kd8 {[%clk
0:00:57.6]} 60. Kg6 {[%clk 0:00:03.1]} 60... Nc5 {[%clk 0:00:58.5]} 61. Rxf6
{[%clk 0:00:02.9]} 61... Kd7 {[%clk 0:00:58.1]} 62. Rf7+ {[%clk 0:00:02.9]}
62... Kd6 {[%clk 0:00:58.5]} 63. f6 {[%clk 0:00:03.5]} 63... Nxe4 {[%clk
0:00:57.6]} 64. Rb7 {[%clk 0:00:04.2]} 64... Nc5 {[%clk 0:00:54.5]} 65. f7
{[%clk 0:00:03.6]} 65... Ne6 {[%clk 0:00:47]} 66. Rb8 {[%clk 0:00:04.2]} 66...
Kc5 {[%clk 0:00:47.4]} 67. Re8 {[%clk 0:00:04.3]} 67... Nf4+ {[%clk 0:00:47.1]}
68. Kf5 {[%clk 0:00:04.4]} 68... Kb4 {[%clk 0:00:46.6]} 69. f8=Q+ {[%clk
0:00:04.3]} 69... Kxb3 {[%clk 0:00:47.1]} 70. Rxe5 {[%clk 0:00:04.8]} 70... Nd3
{[%clk 0:00:47.2]} 71. Re6 {[%clk 0:00:04]} 71... Nb4 {[%clk 0:00:46.4]} 72. Qd6
{[%clk 0:00:04.5]} 72... Kxa4 {[%clk 0:00:46.3]} 73. Qc7 {[%clk 0:00:04.8]}
73... Kb3 {[%clk 0:00:42.5]} 74. Rxc6 {[%clk 0:00:05]} 74... a4 {[%clk
0:00:43.4]} 75. Rxb6 {[%clk 0:00:04.6]} 75... Kc3 {[%clk 0:00:41]} 76. Rxb4
{[%clk 0:00:04.2]} 76... Kxb4 {[%clk 0:00:41.4]} 77. c5 {[%clk 0:00:04.9]} 77...
a3 {[%clk 0:00:41.6]} 78. Qb6+ {[%clk 0:00:05.6]} 78... Kc3 {[%clk 0:00:41.9]}
79. c6 {[%clk 0:00:06.3]} 79... a2 {[%clk 0:00:42.4]} 80. Qa5+ {[%clk
0:00:06.7]} 80... Kb2 {[%clk 0:00:41.6]} 81. c7 {[%clk 0:00:07.6]} 81... a1=Q
{[%clk 0:00:33.8]} 82. Qxa1+ {[%clk 0:00:07]} 82... Kxa1 {[%clk 0:00:33.8]} 83.
c8=Q {[%clk 0:00:07.7]} 83... Kb2 {[%clk 0:00:34]} 84. Qc4 {[%clk 0:00:08.3]}
84... Ka3 {[%clk 0:00:34.2]} 85. Qb5 {[%clk 0:00:08.2]} 85... Ka2 {[%clk
0:00:33.9]} 86. Qb4 {[%clk 0:00:09.1]} 86... Ka1 {[%clk 0:00:34.3]} 87. Ke4
{[%clk 0:00:10]} 87... Ka2 {[%clk 0:00:35.2]} 88. Kd3 {[%clk 0:00:10.9]} 88...
Ka1 {[%clk 0:00:35.7]} 89. Kc2 {[%clk 0:00:11.8]} 89... Ka2 {[%clk 0:00:36.6]}
90. Qb2# {[%clk 0:00:11.8]} 1-0

[Event "Late-Titled-Tuesday-Blitz-February-20-2024"]
[Site "Chess.com"]
[Date "2024.02.20"]
[Round "4"]
[White "Rashad_Zeynalli"]
[Black "GiorgianBarbosa"]
[Result "1-0"]
[WhiteElo "2648"]
[BlackElo "2504"]
[TimeControl "180+1"]
[EndTime "14:40:14 PST"]
[Termination "Rashad_Zeynalli won on time"]

1. e4 {[%clk 0:03:00.9]} 1... c5 {[%clk 0:02:48.7]} 2. Nf3 {[%clk 0:03:00.4]}
2... g6 {[%clk 0:02:49.6]} 3. c3 {[%clk 0:02:45.8]} 3... Bg7 {[%clk 0:02:49.3]}
4. d4 {[%clk 0:02:45.4]} 4... cxd4 {[%clk 0:02:49]} 5. cxd4 {[%clk 0:02:46.3]}
5... d5 {[%clk 0:02:49.9]} 6. e5 {[%clk 0:02:46.9]} 6... Bg4 {[%clk 0:02:47]} 7.
Nbd2 {[%clk 0:02:45.4]} 7... e6 {[%clk 0:02:45.2]} 8. Bb5+ {[%clk 0:02:32.5]}
8... Nd7 {[%clk 0:02:43.8]} 9. O-O {[%clk 0:02:29.4]} 9... Ne7 {[%clk 0:02:28]}
10. Re1 {[%clk 0:02:28.9]} 10... O-O {[%clk 0:02:27]} 11. h3 {[%clk 0:02:28.9]}
11... Bxf3 {[%clk 0:02:26.7]} 12. Nxf3 {[%clk 0:02:29.8]} 12... a6 {[%clk
0:02:27.3]} 13. Bd3 {[%clk 0:02:29]} 13... Nc6 {[%clk 0:02:27.8]} 14. Be3 {[%clk
0:02:17.9]} 14... b5 {[%clk 0:02:22]} 15. Rc1 {[%clk 0:02:14.8]} 15... Nb6
{[%clk 0:02:21.8]} 16. Rxc6 {[%clk 0:02:11.9]} 16... Nc4 {[%clk 0:02:20.9]} 17.
Bxc4 {[%clk 0:02:08.3]} 17... dxc4 {[%clk 0:02:20.5]} 18. d5 {[%clk 0:01:52.8]}
18... exd5 {[%clk 0:02:15.8]} 19. Rd6 {[%clk 0:01:52.2]} 19... Qa5 {[%clk
0:02:09.9]} 20. a3 {[%clk 0:01:49.5]} 20... c3 {[%clk 0:02:05.2]} 21. bxc3
{[%clk 0:01:46.1]} 21... Qxa3 {[%clk 0:02:04.5]} 22. Qxd5 {[%clk 0:01:40.7]}
22... Qxc3 {[%clk 0:02:03.9]} 23. Rd7 {[%clk 0:01:40.8]} 23... Qc4 {[%clk
0:01:46.9]} 24. Qxc4 {[%clk 0:01:26.7]} 24... bxc4 {[%clk 0:01:47.8]} 25. Rc1
{[%clk 0:01:26.1]} 25... Rfc8 {[%clk 0:01:48.1]} 26. Rd4 {[%clk 0:01:24.4]}
26... c3 {[%clk 0:01:47.3]} 27. Rd3 {[%clk 0:01:24.4]} 27... c2 {[%clk
0:01:45.2]} 28. Rd2 {[%clk 0:01:24.2]} 28... a5 {[%clk 0:01:44.2]} 29. Rcxc2
{[%clk 0:01:19.2]} 29... Rxc2 {[%clk 0:01:45.1]} 30. Rxc2 {[%clk 0:01:19.1]}
30... a4 {[%clk 0:01:46]} 31. Rc7 {[%clk 0:01:11.5]} 31... a3 {[%clk 0:01:43.8]}
32. Ra7 {[%clk 0:01:10.9]} 32... Rxa7 {[%clk 0:01:40.3]} 33. Bxa7 {[%clk
0:01:11.8]} 33... f6 {[%clk 0:01:39.1]} 34. Bd4 {[%clk 0:01:01.8]} 34... fxe5
{[%clk 0:01:37.2]} 35. Nxe5 {[%clk 0:01:02]} 35... a2 {[%clk 0:01:37.1]} 36. f4
{[%clk 0:00:58.2]} 36... h5 {[%clk 0:01:36.2]} 37. Kf1 {[%clk 0:00:48.2]} 37...
Bf6 {[%clk 0:01:33.5]} 38. Ke2 {[%clk 0:00:45.5]} 38... g5 {[%clk 0:01:32.5]}
39. fxg5 {[%clk 0:00:36]} 39... Bxg5 {[%clk 0:01:33.4]} 40. Nd3 {[%clk
0:00:35.1]} 40... Be7 {[%clk 0:01:30.4]} 41. Nc1 {[%clk 0:00:33.2]} 41... Kf7
{[%clk 0:01:29.7]} 42. Nxa2 {[%clk 0:00:33]} 42... Ke6 {[%clk 0:01:30.6]} 43.
Nc3 {[%clk 0:00:33.3]} 43... Kf5 {[%clk 0:01:31.5]} 44. Kf3 {[%clk 0:00:33.3]}
44... Bb4 {[%clk 0:01:29.7]} 45. Nd5 {[%clk 0:00:31.9]} 45... Bd2 {[%clk
0:01:29]} 46. Ne3+ {[%clk 0:00:31.5]} 46... Kg6 {[%clk 0:01:29.9]} 47. g4 {[%clk
0:00:26]} 47... hxg4+ {[%clk 0:01:30.8]} 48. Kxg4 {[%clk 0:00:24.4]} 48... Be1
{[%clk 0:01:28.4]} 49. h4 {[%clk 0:00:24.6]} 49... Bxh4 {[%clk 0:01:27.9]} 50.
Kxh4 {[%clk 0:00:25.5]} 50... Kf7 {[%clk 0:01:28.3]} 51. Kg5 {[%clk 0:00:25.3]}
51... Ke6 {[%clk 0:01:29.2]} 52. Kg6 {[%clk 0:00:25.4]} 52... Kd6 {[%clk
0:01:30.1]} 53. Kf6 {[%clk 0:00:24.8]} 53... Kc6 {[%clk 0:01:30.1]} 54. Ke6
{[%clk 0:00:25.2]} 54... Kb5 {[%clk 0:01:28.3]} 55. Kd5 {[%clk 0:00:25]} 55...
Kb4 {[%clk 0:01:29.2]} 56. Ke4 {[%clk 0:00:19.3]} 56... Kb5 {[%clk 0:01:28.4]}
57. Nf5 {[%clk 0:00:17]} 57... Kc6 {[%clk 0:01:27.4]} 58. Ke5 {[%clk 0:00:16.5]}
58... Kb5 {[%clk 0:01:26.7]} 59. Kd5 {[%clk 0:00:17.1]} 59... Kb4 {[%clk
0:01:27.1]} 60. Ne3 {[%clk 0:00:16.9]} 60... Kb5 {[%clk 0:01:24.2]} 61. Kd6
{[%clk 0:00:17.2]} 61... Kb4 {[%clk 0:01:24.1]} 62. Kc6 {[%clk 0:00:17.6]} 62...
Kb3 {[%clk 0:01:23.6]} 63. Kb5 {[%clk 0:00:17.6]} 63... Ka3 {[%clk 0:01:22.4]}
64. Kc4 {[%clk 0:00:14.8]} 64... Ka2 {[%clk 0:01:20.6]} 65. Kb4 {[%clk 0:00:14]}
65... Kb1 {[%clk 0:01:21.5]} 66. Kb3 {[%clk 0:00:13.4]} 66... Kc1 {[%clk
0:01:22.4]} 67. Bc3 {[%clk 0:00:13.6]} 67... Kb1 {[%clk 0:01:22.5]} 68. Bb4
{[%clk 0:00:11.4]} 68... Kc1 {[%clk 0:01:23.4]} 69. Kc3 {[%clk 0:00:11.2]} 69...
Kb1 {[%clk 0:01:22.8]} 70. Ba3 {[%clk 0:00:11.7]} 70... Ka2 {[%clk 0:01:22.9]}
71. Kb4 {[%clk 0:00:12.2]} 71... Kb1 {[%clk 0:01:22.9]} 72. Kb3 {[%clk
0:00:12.6]} 72... Ka1 {[%clk 0:01:22.1]} 73. Nd5 {[%clk 0:00:13.2]} 73... Kb1
{[%clk 0:01:21.9]} 74. Nc3+ {[%clk 0:00:12.4]} 1-0

[Event "Late-Titled-Tuesday-Blitz-February-20-2024"]
[Site "Chess.com"]
[Date "2024.02.20"]
[Round "4"]
[White "Maestro1986"]
[Black "Boundless_Strike"]
[Result "1-0"]
[WhiteElo "2516"]
[BlackElo "2629"]
[TimeControl "180+1"]
[EndTime "14:40:19 PST"]
[Termination "Maestro1986 won by checkmate"]

1. g3 {[%clk 0:03:00.4]} 1... e5 {[%clk 0:02:54.9]} 2. Bg2 {[%clk 0:03:01.3]}
2... d6 {[%clk 0:02:55.2]} 3. e4 {[%clk 0:02:59.2]} 3... f5 {[%clk 0:02:54.5]}
4. Nc3 {[%clk 0:02:57.3]} 4... fxe4 {[%clk 0:02:53.4]} 5. Nxe4 {[%clk
0:02:57.5]} 5... d5 {[%clk 0:02:53.9]} 6. Nc3 {[%clk 0:02:57.5]} 6... Nf6 {[%clk
0:02:53.6]} 7. Nge2 {[%clk 0:02:55.1]} 7... Nc6 {[%clk 0:02:47.4]} 8. d4 {[%clk
0:02:54]} 8... e4 {[%clk 0:02:44.8]} 9. Bg5 {[%clk 0:02:53.8]} 9... Be6 {[%clk
0:02:43]} 10. Nf4 {[%clk 0:02:49.5]} 10... Bf7 {[%clk 0:02:43.3]} 11. Bxf6
{[%clk 0:02:46.2]} 11... gxf6 {[%clk 0:02:44.2]} 12. Bh3 {[%clk 0:02:42.5]}
12... Bb4 {[%clk 0:02:26.4]} 13. O-O {[%clk 0:02:36.1]} 13... h5 {[%clk
0:02:25.4]} 14. Ne6 {[%clk 0:02:29.3]} 14... Qe7 {[%clk 0:02:19.9]} 15. Nxd5
{[%clk 0:02:28.5]} 15... Qd6 {[%clk 0:02:15.9]} 16. Ndxc7+ {[%clk 0:02:05]}
16... Ke7 {[%clk 0:02:11.6]} 17. d5 {[%clk 0:02:02.3]} 17... Ne5 {[%clk
0:02:07.3]} 18. Nxa8 {[%clk 0:01:53.4]} 18... Rxa8 {[%clk 0:02:00.2]} 19. Nf4
{[%clk 0:01:41.2]} 19... h4 {[%clk 0:01:52.1]} 20. c3 {[%clk 0:01:35.3]} 20...
Bc5 {[%clk 0:01:51.2]} 21. Re1 {[%clk 0:01:29.9]} 21... hxg3 {[%clk 0:01:46.5]}
22. hxg3 {[%clk 0:01:28.4]} 22... Rg8 {[%clk 0:01:47.1]} 23. Kf1 {[%clk
0:01:03]} 23... e3 {[%clk 0:00:58.9]} 24. fxe3 {[%clk 0:00:46.3]} 24... Rxg3
{[%clk 0:00:54.3]} 25. Be6 {[%clk 0:00:29.1]} 25... Rf3+ {[%clk 0:00:42.7]} 26.
Ke2 {[%clk 0:00:21]} 26... Rxf4 {[%clk 0:00:27.1]} 27. exf4 {[%clk 0:00:17.3]}
27... Bh5+ {[%clk 0:00:27.4]} 28. Kd2 {[%clk 0:00:18.1]} 28... Bxd1 {[%clk
0:00:25.4]} 29. fxe5 {[%clk 0:00:15.7]} 29... Qb6 {[%clk 0:00:25.1]} 30. Raxd1
{[%clk 0:00:06.5]} 30... Qxb2+ {[%clk 0:00:21.9]} 31. Kd3 {[%clk 0:00:06.7]}
31... fxe5 {[%clk 0:00:15.5]} 32. Rxe5 {[%clk 0:00:06.1]} 32... Kd6 {[%clk
0:00:16]} 33. Re2 {[%clk 0:00:05.8]} 33... Qb5+ {[%clk 0:00:15.9]} 34. Kd2
{[%clk 0:00:06.5]} 34... Qc4 {[%clk 0:00:15.4]} 35. Ke1 {[%clk 0:00:05.6]} 35...
Qh4+ {[%clk 0:00:14.9]} 36. Kd2 {[%clk 0:00:05.5]} 36... Qc4 {[%clk 0:00:15.6]}
37. Rde1 {[%clk 0:00:04]} 37... Qxa2+ {[%clk 0:00:15.8]} 38. Kd3 {[%clk
0:00:04.4]} 38... Qa6+ {[%clk 0:00:15.1]} 39. c4 {[%clk 0:00:02.8]} 39... Qa3+
{[%clk 0:00:15.2]} 40. Ke4 {[%clk 0:00:03.3]} 40... Qc3 {[%clk 0:00:15.8]} 41.
Kf5 {[%clk 0:00:02.2]} 41... Qxc4 {[%clk 0:00:15.5]} 42. Bf7 {[%clk 0:00:02.6]}
42... Qd3+ {[%clk 0:00:15.7]} 43. Kf6 {[%clk 0:00:02.5]} 43... Qf3+ {[%clk
0:00:15.5]} 44. Kg7 {[%clk 0:00:02.7]} 44... Bd4+ {[%clk 0:00:16.2]} 45. Kf8
{[%clk 0:00:03.3]} 45... Qf4 {[%clk 0:00:16.2]} 46. Re6+ {[%clk 0:00:03.7]}
46... Kc5 {[%clk 0:00:15.6]} 47. d6 {[%clk 0:00:03.4]} 47... Qg5 {[%clk
0:00:11.9]} 48. Ke8 {[%clk 0:00:03.2]} 48... Kb4 {[%clk 0:00:06.3]} 49. d7
{[%clk 0:00:03]} 49... Qb5 {[%clk 0:00:05.5]} 50. R1e4 {[%clk 0:00:01.9]} 50...
Kc3 {[%clk 0:00:05.7]} 51. Rd6 {[%clk 0:00:02]} 51... Bc5 {[%clk 0:00:06]} 52.
Rd5 {[%clk 0:00:02.1]} 52... b6 {[%clk 0:00:05.1]} 53. Kd8 {[%clk 0:00:01.5]}
53... Qc6 {[%clk 0:00:05.1]} 54. Ke8 {[%clk 0:00:01.5]} 54... a5 {[%clk
0:00:04.6]} 55. Be6 {[%clk 0:00:01.9]} 55... a4 {[%clk 0:00:04.6]} 56. Rd1
{[%clk 0:00:02.2]} 56... a3 {[%clk 0:00:04.9]} 57. Re2 {[%clk 0:00:02.2]} 57...
b5 {[%clk 0:00:03.3]} 58. Rc1+ {[%clk 0:00:02.5]} 58... Kb4 {[%clk 0:00:04]} 59.
Re4+ {[%clk 0:00:02.2]} 59... Ka5 {[%clk 0:00:04.3]} 60. Rxc5 {[%clk 0:00:02.5]}
60... Qa8+ {[%clk 0:00:04.6]} 61. d8=Q+ {[%clk 0:00:03.2]} 61... Qxd8+ {[%clk
0:00:05]} 62. Kxd8 {[%clk 0:00:04.1]} 62... Kb6 {[%clk 0:00:05.2]} 63. Rxb5+
{[%clk 0:00:04.6]} 63... Kxb5 {[%clk 0:00:05.7]} 64. Re2 {[%clk 0:00:05.1]}
64... Kb4 {[%clk 0:00:06.6]} 65. Kd7 {[%clk 0:00:05.7]} 65... Ka4 {[%clk
0:00:07.5]} 66. Kd6 {[%clk 0:00:06.3]} 66... Kb4 {[%clk 0:00:08.4]} 67. Kd5
{[%clk 0:00:06.1]} 67... Ka4 {[%clk 0:00:09.3]} 68. Kd4 {[%clk 0:00:06.4]} 68...
Kb4 {[%clk 0:00:10.2]} 69. Rc2 {[%clk 0:00:04.9]} 69... Ka4 {[%clk 0:00:11.1]}
70. Kc4 {[%clk 0:00:04.6]} 70... a2 {[%clk 0:00:11.5]} 71. Rxa2# {[%clk
0:00:04.8]} 1-0